bitfinex/quotes_SOLUSD_20250815
["timestamp","ask_amount","ask_price","bid_price","bid_amount"]
[1755242521156,35.88,197.13,197.12,0.7]
[1755242522476,35.88,197.13,197.12,5.77305194]
[1755242523272,35.88,197.13,197.12,0.7]
[1755242523496,35.88,197.13,197.1,5.77349982]
[1755242523775,8.11922844,197.11,197.09,0.1]
[1755242523977,35.88,197.1,197.09,0.1]
[1755242524574,35.88,197.1,197.09,5.87382414]
[1755242524777,35.88,197.1,197.09,13.99305258]
[1755242525588,0.06,197.14,197.09,13.99305258]
[1755242525885,35.88,197.13,197.11,5.07330931]
[1755242526194,35.88,197.13,197.12,0.7]
[1755242526398,35.88,197.13,197.12,8.81922844]
[1755242526766,35.88,197.13,197.11,5.07330931]
[1755242527367,35.88,197.13,197.12,0.7]
[1755242527581,35.88,197.13,197.12,8.81922844]
[1755242527780,35.88,197.13,197.12,0.7]
[1755242527986,35.88,197.13,197.12,5.77305194]
[1755242528494,35.88,197.13,197.11,5.07328177]
[1755242529476,35.88,197.13,197.1,5.07354255]
[1755242530691,35.88,197.13,197.1,5.80354255]
[1755242531197,35.88,197.13,197.1,5.10354255]
[1755242531372,35.88,197.13,197.1,0.03]
[1755242531575,36.58,197.13,197.1,0.03]
[1755242532673,0.7,197.12,197.1,0.03]
[1755242532985,59.10544401,197.11,197.1,0.03]
[1755242533666,59.80544401,197.11,197.1,0.03]
[1755242534978,51.68621557,197.11,197.1,0.03]
[1755242535290,59.80544401,197.11,197.1,0.03]
[1755242536585,51.68621557,197.11,197.1,0.03]
[1755242536786,35.88,197.11,197.1,0.03]
[1755242536971,35.88,197.11,197.1,0.73]
[1755242537292,35.88,197.11,197.1,0.03]
[1755242537868,44.69922844,197.11,197.1,0.03]
[1755242538696,35.88,197.11,197.1,0.03]
[1755242543301,39.27377342,197.11,197.1,0.03]
[1755242544397,35.88,197.11,197.1,0.03]
[1755242544778,35.88,197.11,197.1,0.73]
[1755242544988,35.88,197.11,197.1,8.84922844]
[1755242545217,35.88,197.11,197.1,13.92279515]
[1755242546397,0.06,197.11,197.1,13.92279515]
[1755242548593,0.06,197.11,197.1,5.80356671]
[1755242548925,0.06,197.11,197.1,13.92279515]
[1755242549130,35.92,197.11,197.1,0.03]
[1755242549419,44.73922844,197.11,197.1,0.03]
[1755242549779,40.01644199,197.11,197.1,0.03]
[1755242550093,44.73922844,197.11,197.1,0.03]
[1755242550702,36.62,197.11,197.1,0.03]
[1755242550889,44.73922844,197.11,197.1,0.03]
[1755242551085,0.06,197.11,197.1,0.03]
[1755242551289,35.92,197.11,197.1,0.73]
[1755242551495,35.92,197.11,197.1,0.03]
[1755242551897,36.62,197.11,197.1,0.03]
[1755242552310,35.92,197.11,197.1,0.03]
[1755242552612,36.62,197.11,197.1,0.03]
[1755242553489,48.13692563,197.11,197.1,0.03]
[1755242554093,53.21023494,197.11,197.1,0.03]
[1755242554689,36.62,197.11,197.1,0.03]
[1755242554897,35.92,197.11,197.1,0.03]
[1755242555904,35.92,197.11,197.1,8.84922844]
[1755242556296,0.06,197.11,197.1,8.84922844]
[1755242556494,0.06,197.11,197.1,13.92279515]
[1755242557722,0.06,197.11,197.1,13.22279515]
[1755242557904,0.06,197.11,197.1,13.92279515]
[1755242559928,0.06,197.11,197.1,13.22279515]
[1755242561229,35.92,197.11,197.1,5.10356671]
[1755242564502,35.92,197.11,197.1,13.22279515]
[1755242565302,35.92,197.11,197.1,5.10356671]
[1755242565712,35.92,197.11,197.1,13.22279515]
[1755242566515,35.92,197.11,197.1,5.10356671]
[1755242567124,36.62,197.11,197.1,5.10356671]
[1755242567923,35.92,197.11,197.1,13.22279515]
[1755242570497,0.06,197.11,197.1,13.92279515]
[1755242571325,0.06,197.11,197.1,13.22279515]
[1755242571625,0.76,197.11,197.1,13.22279515]
[1755242572611,0.76,197.11,197.1,5.10356671]
[1755242572811,36.62,197.11,197.1,0.03]
[1755242574203,44.73922844,197.11,197.1,0.03]
[1755242574705,48.14103495,197.11,197.1,0.03]
[1755242574908,40.02180651,197.11,197.1,0.03]
[1755242575409,36.62,197.11,197.1,0.03]
[1755242575833,40.02186857,197.11,197.1,0.03]
[1755242577149,39.32186857,197.11,197.1,0.03]
[1755242578133,39.32186857,197.11,197.1,8.84922844]
[1755242578134,0.06,197.11,197.1,8.84922844]
[1755242579132,0.06,197.11,197.1,13.92279515]
[1755242579820,0.06,197.11,197.1,13.22279515]
[1755242580021,0.76,197.11,197.1,5.10356671]
[1755242580427,0.06,197.11,197.1,13.22279515]
[1755242580736,0.06,197.11,197.1,13.92279515]
[1755242581638,0.73,197.11,197.1,5.10356671]
[1755242582744,0.06,197.11,197.1,13.22279515]
[1755242583451,0.06,197.11,197.1,5.10356671]
[1755242583619,0.73,197.11,197.1,0.03]
[1755242583941,4.13722782,197.11,197.1,0.03]
[1755242585657,32.43598114,197.11,197.1,0.03]
[1755242587656,63.20267183,197.11,197.1,0.03]
[1755242588844,55.08344339,197.11,197.1,0.03]
[1755242589037,39.30722782,197.11,197.1,0.03]
[1755242589753,39.97722782,197.11,197.1,0.03]
[1755242590140,48.09645626,197.11,197.1,0.03]
[1755242590347,53.16976557,197.11,197.1,0.03]
[1755242590529,48.09645626,197.11,197.1,0.03]
[1755242591030,39.97722782,197.11,197.1,0.03]
[1755242591450,48.09645626,197.11,197.1,0.03]
[1755242591832,68.27598114,197.11,197.1,0.03]
[1755242598335,94.27598114,197.11,197.1,0.03]
[1755242599934,45.24344339,197.11,197.1,0.03]
[1755242600144,80.41344339,197.11,197.1,0.03]
[1755242601327,65.30722782,197.11,197.1,0.03]
[1755242602631,35.9,197.11,197.1,0.7]
[1755242602831,0.06,197.11,197.1,8.81922844]
[1755242604064,0.06,197.11,197.1,13.89279515]
[1755242607061,1e-08,197.11,197.1,13.89279515]
[1755242607263,1e-08,197.11,197.1,14.40015182]
[1755242607467,1e-08,197.11,197.1,13.89279515]
[1755242607657,1e-08,197.11,197.1,14.40015182]
[1755242608751,1e-08,197.11,197.1,13.89279515]
[1755242609058,1e-08,197.11,197.1,5.10356671]
[1755242609446,1e-08,197.11,197.1,13.22279515]
[1755242609847,1e-08,197.11,197.1,0.03]
[1755242610052,0.67000001,197.11,197.1,0.03]
[1755242611467,1e-08,197.11,197.1,0.03]
[1755242611671,1e-08,197.11,197.1,8.80922844]
[1755242613066,1e-08,197.11,197.1,13.88279515]
[1755242614869,1e-08,197.11,197.1,13.22279515]
[1755242627770,1e-08,197.11,197.1,13.88279515]
[1755242628352,1e-08,197.11,197.1,13.22279515]
[1755242630175,1e-08,197.11,197.1,13.88279515]
[1755242630376,1e-08,197.11,197.1,13.22279515]
[1755242631759,1e-08,197.11,197.1,13.88279515]
[1755242636383,0.06,197.13,197.1,13.88279515]
[1755242636384,1e-08,197.13,197.1,13.88279515]
[1755242636587,0.06,197.15,197.12,8.11922844]
[1755242636765,0.06,197.15,197.14,8.11922844]
[1755242637669,0.06,197.15,197.14,8.77922844]
[1755242637876,0.06,197.15,197.14,8.11922844]
[1755242638275,0.06,197.15,197.14,13.19176572]
[1755242639005,0.06,197.15,197.14,13.85176572]
[1755242640104,0.06,197.16,197.14,13.85176572]
[1755242640306,0.06,197.16,197.15,8.11922844]
[1755242641290,0.73,197.16,197.15,8.11922844]
[1755242641480,0.73,197.16,197.14,5.07253728]
[1755242641684,0.67,197.15,197.14,5.07253728]
[1755242642785,0.06,197.16,197.14,13.19176572]
[1755242642990,0.06,197.16,197.15,8.11922844]
[1755242643301,0.06,197.16,197.14,13.19176572]
[1755242643676,0.67,197.15,197.14,5.07253728]
[1755242643877,0.67,197.15,197.14,13.19176572]
[1755242644099,0.06,197.16,197.14,13.19176572]
[1755242644401,0.73,197.16,197.14,13.19176572]
[1755242644800,0.06,197.16,197.15,8.11922844]
[1755242645504,0.73,197.16,197.14,5.07253728]
[1755242645685,0.73,197.16,197.12,12.68212428]
[1755242645884,0.73,197.16,197.12,8.11922844]
[1755242646595,0.67,197.15,197.12,8.11922844]
[1755242646800,0.67,197.15,197.14,8.11922844]
[1755242647575,0.67,197.15,197.13,8.14922844]
[1755242647778,0.06,197.16,197.14,5.07253728]
[1755242648375,0.67,197.15,197.14,5.07253728]
[1755242651483,0.67,197.15,197.13,0.03]
[1755242651690,8.11922844,197.14,197.13,0.03]
[1755242651893,11.52574891,197.14,197.13,0.03]
[1755242652105,17.26828619,197.14,197.13,0.03]
[1755242654307,12.19574891,197.14,197.13,0.03]
[1755242654695,17.26828619,197.14,197.13,0.03]
[1755242655410,32.37450176,197.14,197.13,0.03]
[1755242658819,36.61011214,197.14,197.13,0.03]
[1755242658991,36.62138923,197.14,197.13,0.03]
[1755242660003,66.62138923,197.14,197.13,0.03]
[1755242660401,62.36949593,197.14,197.13,0.03]
[1755242660930,66.62138923,197.14,197.13,1e-08]
[1755242661137,15.10621557,197.13,197.1,0.03]
[1755242661325,23.22544401,197.11,197.1,0.03]
[1755242661629,26.62695865,197.11,197.1,0.03]
[1755242662124,32.37026796,197.11,197.1,0.03]
[1755242666229,32.36350085,197.11,197.1,0.03]
[1755242669409,28.96875332,197.11,197.1,0.03]
[1755242669615,32.36164976,197.11,197.1,0.03]
[1755242670018,64.09875332,197.11,197.1,0.03]
[1755242670224,64.76875332,197.11,197.1,0.03]
[1755242670829,68.16131007,197.11,197.1,0.03]
[1755242672912,64.76875332,197.11,197.1,0.03]
[1755242673224,67.49013645,197.11,197.1,0.03]
[1755242673411,68.16013645,197.11,197.1,0.03]
[1755242673613,68.15988334,197.11,197.1,0.03]
[1755242676043,20.17978228,197.1,197.09,0.1]
[1755242676239,32.36014074,197.1,197.09,0.1]
[1755242676614,62.36014074,197.1,197.09,0.1]
[1755242678134,66.4693369,197.1,197.09,0.1]
[1755242678318,62.36014074,197.1,197.09,0.1]
[1755242679336,32.36014074,197.1,197.09,0.1]
[1755242680639,34.39374674,197.1,197.09,0.1]
[1755242682423,64.39374674,197.1,197.09,0.1]
[1755242683436,63.72374674,197.1,197.09,0.1]
[1755242684245,53.5709123,197.1,197.09,0.1]
[1755242684433,94.09901072,197.1,197.09,0.1]
[1755242685038,97.48770681,197.1,197.09,0.1]
[1755242685235,98.15769381,197.1,197.09,0.1]
[1755242685429,68.15769381,197.1,197.09,0.1]
[1755242686445,100.19119581,197.1,197.09,0.1]
[1755242688047,69.52119581,197.1,197.09,0.1]
[1755242688947,54.29489866,197.1,197.09,0.1]
[1755242689618,62.4141271,197.1,197.09,0.1]
[1755242690241,67.48769381,197.1,197.09,0.1]
[1755242693438,68.15769381,197.1,197.09,0.1]
[1755242697088,70.19109281,197.1,197.09,0.1]
[1755242697463,70.25109281,197.1,197.09,0.1]
[1755242697796,74.49452723,197.1,197.09,0.1]
[1755242697954,74.03629056,197.1,197.08,0.03]
[1755242698280,31.54329339,197.09,197.08,0.03]
[1755242698778,30.87329339,197.09,197.08,0.03]
[1755242698946,28.6477321,197.09,197.08,0.03]
[1755242699149,26.6141271,197.09,197.08,0.03]
[1755242699752,35.94711753,197.09,197.08,0.03]
[1755242700160,22.75406495,197.09,197.08,0.03]
[1755242700375,26.6141271,197.09,197.08,0.69]
[1755242700563,3.38868309,197.09,197.08,0.69]
[1755242701183,3.38868309,197.09,197.08,0.03]
[1755242701567,135.28868309,197.09,197.08,0.03]
[1755242701782,163.58795124,197.09,197.08,0.03]
[1755242702079,164.28795124,197.09,197.08,0.03]
[1755242702878,168.54711753,197.09,197.08,0.03]
[1755242703073,164.28795124,197.09,197.08,0.03]
[1755242703581,172.3431202,197.09,197.08,0.03]
[1755242703761,168.55275752,197.09,197.08,0.03]
[1755242704362,164.28795124,197.09,197.08,0.03]
[1755242705391,168.07840772,197.09,197.08,0.03]
[1755242706281,68.21190972,197.09,197.08,0.03]
[1755242707167,52.40569415,197.09,197.08,0.03]
[1755242707371,69.50145324,197.09,197.08,0.03]
[1755242707573,67.46795124,197.09,197.08,0.03]
[1755242710688,72.43443903,197.09,197.08,0.03]
[1755242711070,71.73443903,197.09,197.08,0.03]
[1755242711868,71.96076768,197.09,197.08,0.03]
[1755242712072,72.46076768,197.09,197.08,0.03]
[1755242712369,78.11843245,197.09,197.07,0.03]
[1755242712585,7.88149953,197.08,197.07,0.03]
[1755242712894,15.10621557,197.07,197.05,0.03]
[1755242713189,66.66235394,197.06,197.05,0.03]
[1755242713387,67.36235394,197.06,197.05,0.03]
[1755242714291,72.4369505,197.06,197.05,0.03]
[1755242715589,71.7369505,197.06,197.05,0.03]
[1755242716588,72.4369505,197.06,197.05,0.03]
[1755242716890,63.8407702,197.06,197.05,0.03]
[1755242717072,71.95999864,197.06,197.05,0.03]
[1755242718187,76.22231883,197.06,197.05,0.03]
[1755242718386,71.95999864,197.06,197.05,0.03]
[1755242718694,73.99381064,197.06,197.05,0.03]
[1755242719194,78.25502222,197.06,197.05,0.03]
[1755242719493,73.99381064,197.06,197.05,0.03]
[1755242719696,103.99381064,197.06,197.05,0.03]
[1755242719990,101.95999864,197.06,197.05,0.03]
[1755242720194,108.25546866,197.06,197.05,0.03]
[1755242720774,103.99381064,197.06,197.05,0.03]
[1755242721300,108.25607249,197.06,197.05,0.03]
[1755242722195,104.46479751,197.06,197.05,0.03]
[1755242722403,74.46479751,197.06,197.05,0.03]
[1755242723099,72.43098551,197.06,197.05,0.03]
[1755242724885,74.46479751,197.06,197.05,0.03]
[1755242725407,103.99033965,197.06,197.04,0.03]
[1755242725702,15.99499124,197.05,197.04,0.03]
[1755242726209,18.02890624,197.05,197.04,0.03]
[1755242726584,53.10376033,197.05,197.04,0.03]
[1755242727270,53.10376033,197.05,197.02,0.03]
[1755242727271,15.10621557,197.04,197.02,0.03]
[1755242727476,66.16120681,197.03,197.02,0.03]
[1755242727775,96.16120681,197.03,197.02,0.03]
[1755242727993,98.19543181,197.03,197.01,0.03]
[1755242728184,31.57304975,197.02,197.01,0.03]
[1755242728388,31.09840973,197.02,197.01,0.03]
[1755242728595,36.17403656,197.02,197.01,0.03]
[1755242728899,36.76793593,197.02,197.01,0.03]
[1755242729077,66.76793593,197.02,197.01,0.03]
[1755242729277,67.46793593,197.02,197.01,0.03]
[1755242729502,71.24956824,197.02,197.01,0.03]
[1755242729679,70.54956824,197.02,197.01,0.03]
[1755242729884,66.76793593,197.02,197.01,0.03]
[1755242730192,71.72424269,197.02,197.01,0.03]
[1755242731914,71.24770262,197.02,197.01,0.03]
[1755242732610,20.1823577,197.0,196.99,0.03]
[1755242732775,67.45026923,197.0,196.99,0.03]
[1755242732982,68.17026923,197.0,196.99,0.03]
[1755242733410,73.24892423,197.0,196.99,0.03]
[1755242733781,77.50111898,197.0,196.99,0.03]
[1755242734686,73.24892423,197.0,196.99,0.03]
[1755242735513,103.24892423,197.0,196.99,0.03]
[1755242736012,73.24892423,197.0,196.99,0.03]
[1755242738893,103.24892423,197.0,196.99,0.03]
[1755242739289,15.10621557,196.99,196.93,13.19708188]
[1755242739489,39.14868309,196.98,196.93,5.07785344]
[1755242739711,3.38868309,196.97,196.93,13.19708188]
[1755242739913,35.76,196.96,196.94,0.7]
[1755242740608,35.76,196.96,196.94,5.77762846]
[1755242740806,35.76,196.96,196.95,8.81922844]
[1755242741209,35.76,196.97,196.95,8.81922844]
[1755242741419,35.76,196.97,196.96,0.7]
[1755242741822,35.76,196.97,196.96,8.81922844]
[1755242741988,35.76,196.97,196.96,8.11922844]
[1755242742185,35.76,196.97,196.96,8.81922844]
[1755242742801,140.719228,197.05,196.96,13.89640147]
[1755242742994,39.15508897,197.04,196.99,8.11922844]
[1755242743317,3.39508897,197.03,197.0,0.7]
[1755242743511,35.76,197.02,197.0,0.7]
[1755242746521,35.76,197.02,196.98,0.7]
[1755242747200,35.76,197.02,196.99,0.7]
[1755242747913,40.8356616,197.02,196.99,0.7]
[1755242748491,40.8356616,197.02,196.98,0.03]
[1755242748709,3.40053692,197.01,196.98,0.03]
[1755242749013,41.5556616,197.02,196.98,0.73]
[1755242749014,35.76,197.0,196.98,0.73]
[1755242749399,35.76,197.0,196.98,0.03]
[1755242750412,35.76,197.0,196.99,0.7]
[1755242750614,35.76,197.0,196.98,0.03]
[1755242751020,35.76,197.0,196.98,0.73]
[1755242751329,35.76,197.0,196.98,0.03]
[1755242751907,35.76,197.0,196.99,0.7]
[1755242752909,35.76,197.02,196.99,13.89562825]
[1755242753109,35.76,197.02,197.01,8.11922844]
[1755242753437,0.06,197.04,197.01,8.81922844]
[1755242753735,0.06,197.04,197.03,8.11922844]
[1755242753895,0.06,197.04,197.03,8.81922844]
[1755242754821,0.06,197.04,197.03,13.89459767]
[1755242757805,0.06,197.06,197.03,13.89459767]
[1755242758007,0.06,197.06,197.05,8.11922844]
[1755242758528,0.06,197.06,197.05,8.81922844]
[1755242759707,0.06,197.06,197.05,13.89408253]
[1755242760302,1e-08,197.06,197.05,13.89408253]
[1755242760499,1e-08,197.06,197.05,13.19408253]
[1755242760716,1e-08,197.06,197.02,8.11922844]
[1755242760921,0.66000001,197.06,197.02,8.11922844]
[1755242761623,0.66000001,197.06,197.03,5.07536923]
[1755242763931,0.66000001,197.06,197.01,13.8949239]
[1755242764430,0.66,197.05,197.01,5.07569546]
[1755242764608,1e-08,197.06,197.01,5.79569546]
[1755242764808,0.66,197.05,197.01,5.07569546]
[1755242765022,0.66,197.04,197.02,0.03]
[1755242765511,0.66000001,197.06,197.02,0.03]
[1755242765824,0.66,197.05,197.02,0.03]
[1755242766012,8.77922844,197.05,197.02,0.03]
[1755242766213,0.66,197.05,197.02,0.03]
[1755242769417,0.66,197.04,197.02,0.03]
[1755242769703,35.72,197.03,197.02,0.03]
[1755242770123,36.38,197.03,197.02,0.03]
[1755242773833,44.49922844,197.03,197.02,0.03]
[1755242774033,64.68081324,197.03,197.02,0.03]
[1755242774410,36.38,197.03,197.02,0.03]
[1755242774651,132.56,197.05,197.02,0.03]
[1755242774814,35.72,197.04,197.02,0.75]
[1755242775132,35.72,197.04,197.02,0.03]
[1755242775133,36.38,197.04,197.02,0.03]
[1755242775333,0.66,197.03,197.02,0.03]
[1755242776338,15.76621557,197.03,197.02,0.03]
[1755242776645,23.88544401,197.03,197.02,0.03]
[1755242776943,15.10621557,197.02,196.98,0.03]
[1755242777145,43.83922844,197.01,196.98,0.03]
[1755242777515,0.66,197.0,196.98,0.03]
[1755242777930,8.77922844,197.0,196.98,0.03]
[1755242778130,13.85538009,197.0,196.98,0.03]
[1755242778331,0.66,196.99,196.98,0.03]
[1755242779616,13.85562825,196.99,196.98,0.03]
[1755242779939,28.96184382,196.99,196.98,0.03]
[1755242780144,32.35143684,196.99,196.98,0.03]
[1755242780319,32.35143684,196.99,196.96,0.03]
[1755242780320,15.10621557,196.98,196.96,0.03]
[1755242780644,47.22882146,196.97,196.96,0.03]
[1755242780946,47.88882146,196.97,196.96,0.03]
[1755242781345,62.99503703,196.97,196.96,0.03]
[1755242781722,68.07195229,196.97,196.96,0.03]
[1755242785149,68.07195229,196.97,196.95,1e-08]
[1755242785321,27.27503703,196.96,196.88,22.43013543]
[1755242785654,15.10621557,196.88,196.81,0.72]
[1755242785938,8.11922844,196.86,196.81,0.72]
[1755242786140,35.74,196.85,196.81,5.80088947]
[1755242786341,35.74,196.85,196.82,0.72]
[1755242787643,35.74,196.85,196.8,13.20048225]
[1755242787848,35.74,196.85,196.81,0.72]
[1755242788355,41.48002171,196.85,196.79,13.92075136]
[1755242788719,36.4,196.85,196.8,0.72]
[1755242788948,36.4,196.85,196.81,0.72]
[1755242792245,35.74,196.84,196.83,8.11922844]
[1755242792960,35.74,196.84,196.81,5.08100071]
[1755242793141,35.74,196.84,196.82,8.82922844]
[1755242793846,35.74,196.84,196.83,0.71]
[1755242795661,35.74,196.84,196.79,5.08155902]
[1755242795847,35.74,196.84,196.8,8.82922844]
[1755242796047,36.41,196.84,196.8,8.82922844]
[1755242796357,36.41,196.84,196.8,8.11922844]
[1755242796853,36.41,196.84,196.79,8.11922844]
[1755242797060,36.41,196.84,196.8,8.11922844]
[1755242797650,36.41,196.84,196.79,8.82922844]
[1755242798255,36.41,196.84,196.8,13.20052925]
[1755242798753,36.41,196.84,196.81,0.03]
[1755242800854,0.67,196.83,196.81,0.03]
[1755242801050,8.78922844,196.83,196.81,0.03]
[1755242801256,0.67,196.83,196.81,0.03]
[1755242801459,35.74,196.82,196.81,0.03]
[1755242801644,36.41,196.82,196.81,0.03]
[1755242802450,35.74,196.82,196.81,0.03]
[1755242802872,35.74,196.82,196.81,8.85922844]
[1755242803746,35.74,196.82,196.81,13.94027106]
[1755242804267,35.74,196.82,196.81,5.11104262]
[1755242804477,35.74,196.82,196.81,13.23027106]
[1755242805675,131.9,196.87,196.81,13.94027106]
[1755242805870,35.74,196.86,196.84,8.11922844]
[1755242806069,35.74,196.85,196.84,8.11922844]
[1755242806257,35.74,196.86,196.84,8.11922844]
[1755242807678,35.74,196.86,196.84,13.1992801]
[1755242808851,35.74,196.86,196.85,8.11922844]
[1755242809786,6.82869982,196.9,196.85,26.609264]
[1755242810073,6.82869982,196.9,196.89,8.11922844]
[1755242810261,6.82869982,196.9,196.89,8.82922844]
[1755242810455,35.74,196.91,196.89,8.82922844]
[1755242810649,35.74,196.91,196.9,8.11922844]
[1755242810846,35.74,196.94,196.9,8.82922844]
[1755242811047,36.41,196.94,196.93,8.11922844]
[1755242811454,35.74,196.94,196.93,8.11922844]
[1755242811656,35.74,196.94,196.93,13.19717491]
[1755242812768,131.9,197.02,196.93,13.90717491]
[1755242812964,35.74,196.97,196.94,8.82922844]
[1755242813168,35.74,196.97,196.94,8.11922844]
[1755242813986,35.74,196.97,196.94,13.19691707]
[1755242815658,0.73,196.95,196.94,13.19691707]
[1755242815967,0.06,196.95,196.94,13.19691707]
[1755242817888,0.73,196.95,196.9,8.11922844]
[1755242818079,8.84922844,196.95,196.88,8.11922844]
[1755242818258,8.17922844,196.95,196.88,8.11922844]
[1755242818463,0.67,196.94,196.88,8.11922844]
[1755242818766,35.72,196.93,196.88,8.11922844]
[1755242819283,0.67,196.92,196.88,8.11922844]
[1755242819485,0.67,196.91,196.88,8.11922844]
[1755242819685,0.67,196.91,196.88,13.19825151]
[1755242820253,0.06,196.95,196.9,8.11922844]
[1755242820455,0.06,196.95,196.94,8.11922844]
[1755242821088,0.06,196.95,196.94,8.82922844]
[1755242821590,0.06,196.95,196.94,8.11922844]
[1755242821776,0.06,196.95,196.94,13.19691707]
[1755242822284,0.06,196.95,196.94,13.90691707]
[1755242822856,0.06,196.95,196.94,13.19691707]
[1755242824187,0.06,196.95,196.94,13.90691707]
[1755242824371,0.06,196.95,196.94,13.19691707]
[1755242828656,1e-08,196.95,196.94,13.90691707]
[1755242828862,0.06,196.99,196.94,26.60113866]
[1755242829060,0.06,196.99,196.98,8.11922844]
[1755242829891,0.06,196.99,196.98,13.19588596]
[1755242832485,0.06,197.03,196.98,34.71675822]
[1755242832705,0.06,197.03,197.02,8.11922844]
[1755242833186,0.06,197.03,197.02,8.82922844]
[1755242834489,0.06,197.03,197.02,13.90485527]
[1755242839577,1e-08,197.03,197.02,13.90485527]
[1755242839982,1e-08,197.05,197.02,14.41241795]
[1755242840180,1e-08,197.05,197.04,8.11922844]
[1755242840390,1e-08,197.05,197.04,8.6267396]
[1755242840689,1e-08,197.05,197.04,9.3367396]
[1755242841283,1e-08,197.05,197.04,14.41185125]
[1755242841896,1e-08,197.07,197.04,14.41185125]
[1755242842085,0.06,197.1,197.06,8.11922844]
[1755242842294,0.06,197.1,197.08,8.11922844]
[1755242842976,0.06,197.1,197.08,8.82922844]
[1755242843694,0.06,197.1,197.08,13.90331003]
[1755242844193,0.06,197.1,197.09,9.33661085]
[1755242844882,0.06,197.1,197.09,8.62661085]
[1755242845083,0.72,197.1,197.09,8.62661085]
[1755242845283,0.72,197.1,197.09,8.11922844]
[1755242845802,0.72,197.1,197.09,13.19305258]
[1755242849880,0.72,197.1,197.09,5.07382414]
[1755242850093,0.72,197.1,197.09,13.19305258]
[1755242852389,0.72,197.1,197.09,8.11922844]
[1755242853291,0.72,197.1,197.03,12.68811263]
[1755242853597,0.72,197.1,197.08,8.11922844]
[1755242853803,0.72,197.1,197.08,13.19318257]
[1755242854191,0.68,197.09,197.08,13.19318257]
[1755242854975,0.68,197.09,197.08,8.11922844]
[1755242855195,0.68,197.09,197.03,8.11922844]
[1755242855393,3.37338219,197.08,197.03,8.11922844]
[1755242855599,0.68,197.07,197.03,8.11922844]
[1755242856917,0.68,197.06,197.04,13.19434009]
[1755242858278,0.68,197.06,197.04,5.07511165]
[1755242858787,0.68,197.06,197.01,13.35960104]
[1755242858788,0.68,197.05,197.03,13.1945889]
[1755242858996,0.68,197.05,197.03,5.07536046]
[1755242860106,0.68,197.05,197.03,8.11922844]
[1755242860610,0.68,197.07,197.04,8.11922844]
[1755242860794,0.68,197.06,197.01,5.74588447]
[1755242860994,0.68,197.06,197.04,8.11922844]
[1755242861211,0.68,197.05,197.04,8.11922844]
[1755242861406,0.68,197.05,197.01,5.07588447]
[1755242861726,3.37932908,197.09,197.04,8.11922844]
[1755242861887,0.06,197.1,197.06,8.11922844]
[1755242862088,0.06,197.1,197.09,8.11922844]
[1755242862282,0.06,197.1,197.09,13.19305258]
[1755242862706,0.74,197.1,197.09,13.19305258]
[1755242863117,0.74,197.1,197.09,8.11922844]
[1755242863296,0.74,197.1,197.09,13.19305258]
[1755242863693,0.06,197.1,197.09,13.19305258]
[1755242864109,0.06,197.1,197.09,13.86305258]
[1755242864995,0.06,197.1,197.09,13.19305258]
[1755242866230,0.06,197.1,197.09,14.37043499]
[1755242867296,0.06,197.1,197.09,13.89305258]
[1755242868320,1e-08,197.1,197.09,13.89305258]
[1755242868528,0.06,197.11,197.09,13.89305258]